bitfinex-derivatives/quotes_BTCF0:USTF0_20250125
["timestamp","ask_amount","ask_price","bid_price","bid_amount"]
[1737790348021,0.43209611,104490.0,104480.0,0.16269335]
[1737790349024,0.31736011,104490.0,104480.0,0.16269335]
[1737790351425,0.31736011,104490.0,104480.0,0.20362209]
[1737790353129,0.31736011,104490.0,104480.0,0.24626118]
[1737790356028,0.43209611,104490.0,104480.0,0.24626118]
[1737790359330,0.4227063,104490.0,104480.0,0.30398548]
[1737790360132,0.364982,104490.0,104480.0,0.30398548]
[1737790360828,0.331782,104490.0,104480.0,0.30398548]
[1737790363327,0.114736,104490.0,104480.0,0.33568548]
[1737790363633,0.114736,104490.0,104480.0,0.39858548]
[1737790364434,0.114736,104490.0,104480.0,0.35765674]
[1737790374248,0.114736,104490.0,104480.0,0.39859183]
[1737790376454,0.114736,104490.0,104480.0,0.35765674]
[1737790377059,0.114736,104490.0,104480.0,0.41538104]
[1737790377248,0.114736,104490.0,104480.0,0.35765674]
[1737790377552,0.114736,104490.0,104480.0,0.41538104]
[1737790377855,0.114736,104490.0,104480.0,0.45726434]
[1737790378246,0.114736,104490.0,104480.0,0.41538104]
[1737790379055,0.114736,104490.0,104480.0,0.45726429]
[1737790380856,0.114736,104490.0,104480.0,0.41538104]
[1737790382955,0.114736,104490.0,104480.0,0.77618104]
[1737790383161,0.114736,104490.0,104480.0,0.81806152]
[1737790383560,0.20088219,104490.0,104480.0,1.10413215]
[1737790384461,0.20088219,104490.0,104480.0,1.06225167]
[1737790384859,0.20088219,104490.0,104480.0,1.10413215]
[1737790386256,0.08614619,104490.0,104480.0,1.10413215]
[1737790392966,0.08614619,104490.0,104480.0,1.04640785]
[1737790393373,0.08614619,104490.0,104480.0,1.10413215]
[1737790398279,0.08614619,104490.0,104480.0,1.06225167]
[1737790398483,0.08614619,104490.0,104480.0,1.00452737]
[1737790398682,0.08614619,104490.0,104480.0,1.06225167]
[1737790404679,0.08614619,104490.0,104480.0,1.23065632]
[1737790404883,0.08614619,104490.0,104480.0,1.17293202]
[1737790409392,0.08614619,104500.0,104490.0,0.153146]
[1737790409592,0.08614619,104500.0,104490.0,0.65618974]
[1737790412893,0.65164987,104510.0,104500.0,0.153132]
[1737790413117,0.65164987,104510.0,104500.0,0.2108563]
[1737790414398,0.59392557,104510.0,104500.0,0.2108563]
[1737790419203,0.59392557,104510.0,104500.0,0.27794343]
[1737790419505,0.23312557,104510.0,104500.0,0.58101913]
[1737790419891,0.23312557,104510.0,104500.0,0.6228943]
[1737790420087,0.23312557,104510.0,104500.0,0.58101913]
[1737790420701,0.23312557,104510.0,104500.0,0.62289394]
[1737790420900,0.23312557,104510.0,104500.0,0.66550322]
[1737790423403,0.23312557,104510.0,104500.0,0.62289394]
[1737790424616,0.11838957,104510.0,104500.0,0.62289394]
[1737790426210,0.11838957,104510.0,104500.0,0.65529394]
[1737790430315,0.11838957,104510.0,104500.0,0.61341913]
[1737790431708,0.27150657,104510.0,104500.0,0.61341913]
[1737790432216,0.38624257,104510.0,104500.0,0.61341913]
[1737790434117,0.38624257,104510.0,104500.0,0.46028713]
[1737790434316,0.38624257,104510.0,104500.0,0.50290564]
[1737790435119,0.38624257,104510.0,104500.0,0.46028713]
[1737790436203,0.38624257,104510.0,104500.0,0.5029137]
[1737790439019,0.38624257,104510.0,104500.0,0.4451894]
[1737790440015,0.38624257,104510.0,104500.0,0.5029137]
[1737790442321,0.38624257,104510.0,104500.0,0.08450156]
[1737790442322,0.50169117,104510.0,104500.0,0.08450156]
[1737790442518,0.153144,104500.0,104480.0,1.04460982]
[1737790442723,0.153144,104500.0,104480.0,0.83553611]
[1737790442724,0.153146,104490.0,104480.0,0.83553611]
[1737790442916,0.153146,104490.0,104480.0,1.19633611]
[1737790444227,0.153146,104490.0,104480.0,0.83553611]
[1737790444724,0.153146,104490.0,104480.0,0.7928728]
[1737790444926,0.153146,104490.0,104480.0,0.83513745]
[1737790445324,0.153146,104490.0,104480.0,1.19593745]
[1737790445721,0.23929219,104490.0,104480.0,0.95199878]
[1737790447831,0.23929219,104490.0,104480.0,1.10515978]
[1737790450030,0.23929219,104490.0,104480.0,1.04743548]
[1737790450229,0.153146,104490.0,104480.0,0.40083201]
[1737790450524,0.153146,104490.0,104480.0,0.31668664]
[1737790450831,0.153146,104490.0,104480.0,0.35856965]
[1737790451030,0.153146,104490.0,104480.0,0.31668664]
[1737790452829,0.153146,104490.0,104480.0,0.35856982]
[1737790453331,0.153146,104490.0,104480.0,0.20540882]
[1737790458527,0.153146,104490.0,104480.0,0.56620882]
[1737790458727,0.153146,104490.0,104480.0,0.20540882]
[1737790463138,0.153146,104490.0,104480.0,0.71936982]
[1737790463338,0.153146,104490.0,104480.0,0.35856982]
[1737790465342,0.153146,104490.0,104480.0,0.71936982]
[1737790465741,0.153146,104490.0,104480.0,0.35856982]
[1737790466238,0.61940649,104500.0,104480.0,0.35856982]
[1737790466436,0.77254349,104500.0,104480.0,0.35856982]
[1737790467139,0.77254349,104500.0,104480.0,0.42736982]
[1737790467642,0.77254349,104500.0,104480.0,0.35856982]
[1737790467835,0.77254349,104500.0,104480.0,0.42736982]
[1737790468142,0.77254349,104500.0,104480.0,0.78816982]
[1737790468343,0.08614619,104490.0,104480.0,0.78816982]
[1737790468545,0.08614619,104490.0,104480.0,0.42736982]
[1737790470452,0.08614619,104490.0,104480.0,0.78816982]
[1737790470641,0.08614619,104490.0,104480.0,0.8303962]
[1737790472845,0.08614619,104490.0,104480.0,0.4695962]
[1737790473043,0.08614619,104490.0,104480.0,0.8303962]
[1737790473453,0.08614619,104490.0,104480.0,0.78851302]
[1737790473748,0.08614619,104490.0,104480.0,0.74628664]
[1737790474249,0.08614619,104490.0,104480.0,0.78855078]
[1737790475449,0.08614619,104490.0,104480.0,1.07435425]
[1737790477647,0.08614619,104490.0,104480.0,1.11623743]
[1737790482454,0.20088219,104490.0,104480.0,1.11623743]
[1737790493459,0.25860649,104490.0,104480.0,0.89351313]
[1737790493664,0.38632919,104490.0,104480.0,0.89351313]
[1737790493966,0.41872919,104490.0,104480.0,0.59043743]
[1737790494156,0.45112919,104490.0,104480.0,0.59043743]
[1737790494361,0.45112919,104490.0,104480.0,0.53271313]
[1737790494858,0.45112919,104490.0,104480.0,0.59043743]
[1737790498858,0.45112919,104490.0,104480.0,0.50629011]
[1737790499058,0.41872919,104490.0,104480.0,0.50629011]
[1737790499258,0.41872919,104490.0,104480.0,0.53859011]
[1737790500353,0.26558219,104490.0,104480.0,0.53859011]
[1737790500562,0.26558219,104490.0,104480.0,0.89939011]
[1737790500862,0.20088219,104490.0,104480.0,0.89939011]
[1737790501063,0.20088219,104490.0,104480.0,0.96399011]
[1737790501264,0.20088219,104490.0,104480.0,1.02171441]
[1737790502370,0.20088219,104490.0,104480.0,0.96399011]
[1737790503163,0.08614619,104490.0,104480.0,0.72047819]
[1737790503466,0.08614619,104490.0,104480.0,0.77820249]
[1737790503973,0.08614619,104490.0,104480.0,0.72047819]
[1737790504469,0.08614619,104490.0,104480.0,0.76236137]
[1737790505964,0.08614619,104490.0,104480.0,0.82008567]
[1737790506166,0.08614619,104490.0,104480.0,1.10588914]
[1737790506870,0.08614619,104490.0,104480.0,1.04816484]
[1737790507873,0.08614619,104490.0,104480.0,1.10588914]
[1737790510078,0.08614619,104490.0,104480.0,1.06400596]
[1737790510271,0.08614619,104490.0,104480.0,1.10588817]
[1737790512877,0.08614619,104490.0,104480.0,1.44769803]
[1737790517383,0.20088219,104500.0,104490.0,0.153147]
[1737790517582,0.20088219,104500.0,104490.0,0.29504506]
[1737790519382,0.20088219,104500.0,104490.0,0.25316285]
[1737790519574,0.20088219,104500.0,104490.0,0.2108713]
[1737790520383,0.20088219,104500.0,104490.0,0.25312701]
[1737790520585,0.08614619,104500.0,104490.0,0.25312701]
[1737790520883,0.08614619,104500.0,104490.0,0.5716713]
[1737790521285,0.08614619,104500.0,104490.0,0.25312462]
[1737790521884,0.08614619,104500.0,104490.0,0.61392462]
[1737790522281,0.08614619,104500.0,104490.0,0.25312462]
[1737790522585,0.08614619,104500.0,104490.0,0.65580256]
[1737790523291,0.08614619,104500.0,104490.0,0.29500256]
[1737790523483,0.08614619,104500.0,104490.0,0.65580256]
[1737790527489,0.04351962,104500.0,104490.0,0.71352686]
[1737790528890,0.11487938,104510.0,104500.0,0.153132]
[1737790529082,0.11487938,104510.0,104500.0,0.87441186]
[1737790529281,0.11487938,104510.0,104500.0,0.83253392]
[1737790531291,0.11487938,104510.0,104500.0,0.87440567]
[1737790532586,0.00014338,104510.0,104500.0,0.87440567]
[1737790535900,0.00014338,104510.0,104500.0,0.88383992]
[1737790536194,0.00014338,104510.0,104500.0,1.16964339]
[1737790539192,0.00014338,104510.0,104500.0,1.12739007]
[1737790539998,0.00014338,104510.0,104500.0,1.16954342]
[1737790540298,0.00014338,104510.0,104500.0,0.88373995]
[1737790541205,0.00014338,104510.0,104500.0,0.85213995]
[1737790541408,0.00014338,104510.0,104500.0,0.8099866]
[1737790541609,0.03174338,104510.0,104500.0,0.8099866]
[1737790545302,0.03174338,104510.0,104500.0,0.70757485]
[1737790545509,0.24258468,104510.0,104500.0,0.37023425]
[1737790545710,0.30578468,104510.0,104500.0,0.37023425]
[1737790545914,0.30578468,104510.0,104500.0,0.412106]
[1737790546212,0.66658468,104510.0,104500.0,0.051306]
[1737790548517,0.66658468,104510.0,104500.0,0.1090303]
[1737790550920,0.66658468,104510.0,104500.0,0.06715855]
[1737790552616,0.66658468,104510.0,104500.0,0.22029055]
[1737790552817,0.67624204,104510.0,104500.0,0.22029055]
[1737790553122,0.78132068,104510.0,104500.0,0.22029055]
[1737790556515,0.78132068,104510.0,104500.0,0.16256625]
[1737790562223,0.78132068,104510.0,104500.0,0.06715855]
[1737790562428,0.78132068,104510.0,104500.0,0.0577243]
[1737790562627,0.78132068,104510.0,104490.0,0.2108653]
[1737790563523,0.153132,104500.0,104490.0,0.2108653]
[1737790566025,0.153132,104500.0,104490.0,0.22033228]
[1737790575429,0.153132,104500.0,104490.0,0.26221221]
[1737790578539,0.153132,104500.0,104490.0,0.3044651]
[1737790580641,0.267868,104500.0,104490.0,0.59026857]
[1737790580945,0.267868,104500.0,104490.0,0.50613575]
[1737790583640,0.267868,104500.0,104490.0,0.22033228]
[1737790583842,0.3255923,104500.0,104490.0,0.09361328]
[1737790584142,0.7441166,104500.0,104490.0,0.05134691]
[1737790584537,0.7441166,104500.0,104490.0,0.04187993]
[1737790584930,0.6863923,104500.0,104490.0,0.04187993]
[1737790585636,0.153147,104490.0,104480.0,0.32695171]
[1737790585840,0.6034713,104490.0,104480.0,0.32695171]
[1737790586845,0.6034713,104490.0,104480.0,0.31724685]
[1737790587942,0.6034713,104490.0,104480.0,0.28594685]
[1737790588131,0.6657713,104490.0,104480.0,0.28594685]
[1737790589347,0.67552462,104490.0,104480.0,0.28594685]
[1737790591734,0.81894462,104490.0,104480.0,0.00014338]
[1737790592847,0.81712462,104490.0,104480.0,0.00014338]
[1737790595549,0.7882764,104490.0,104480.0,0.00014338]
[1737790606858,0.9316964,104490.0,104480.0,0.00014338]
[1737790609956,0.7882764,104490.0,104480.0,0.00014338]
[1737790613162,0.6369494,104490.0,104470.0,0.00958162]
[1737790613361,0.5716853,104480.0,104460.0,0.5384767]
[1737790613549,0.3608,104470.0,104460.0,0.58036998]
[1737790613754,0.513976,104470.0,104460.0,0.58036998]
[1737790615163,0.513976,104470.0,104460.0,0.58983533]
[1737790616664,0.513976,104470.0,104460.0,0.36136493]
[1737790617162,0.67683291,104480.0,104460.0,0.72216493]
[1737790617365,0.82999791,104480.0,104460.0,0.72216493]
[1737790617761,0.82999791,104480.0,104460.0,0.76442241]
[1737790619168,0.82999791,104480.0,104460.0,1.05022588]
[1737790624273,0.82999791,104480.0,104460.0,0.6475326]
[1737790624466,0.82999791,104480.0,104460.0,0.68942619]
[1737790625169,0.82999791,104480.0,104460.0,0.6475326]
[1737790625565,0.82999791,104480.0,104460.0,0.60527512]
[1737790625762,0.82999791,104480.0,104460.0,0.6471669]
[1737790625969,0.82999791,104480.0,104460.0,0.68947413]
[1737790627978,0.77227361,104480.0,104460.0,0.68947413]
[1737790628772,0.82999791,104480.0,104460.0,0.68947413]
[1737790629579,0.77227361,104480.0,104470.0,0.153176]
[1737790630372,0.82999791,104480.0,104470.0,0.153176]
[1737790631075,0.82999791,104480.0,104470.0,0.19506769]
[1737790631280,0.82999791,104480.0,104470.0,0.153176]
[1737790631478,0.77227361,104480.0,104470.0,0.153176]
[1737790632479,0.82999791,104480.0,104470.0,0.153176]
[1737790635586,0.73455721,104480.0,104460.0,0.39436882]
[1737790635885,0.153176,104470.0,104460.0,0.63176147]
[1737790636189,0.2109003,104470.0,104460.0,0.63176147]
[1737790636385,0.2109003,104470.0,104460.0,0.59876147]
[1737790636580,0.2433003,104470.0,104460.0,0.56586147]
[1737790636981,0.2734003,104470.0,104460.0,0.56586147]
[1737790637184,0.2734003,104470.0,104460.0,0.37001312]
[1737790637386,0.6342003,104470.0,104460.0,0.28580347]
[1737790637577,0.6644003,104470.0,104460.0,0.28580347]
[1737790637782,0.6644003,104470.0,104460.0,0.32769877]
[1737790638190,0.6644003,104470.0,104460.0,0.28580347]
[1737790638387,0.77914553,104470.0,104460.0,0.28580347]
[1737790638783,0.77914553,104470.0,104460.0,0.32769978]
[1737790641294,0.77914553,104470.0,104460.0,0.28580347]
[1737790642195,0.78881418,104470.0,104460.0,0.32769885]
[1737790642397,0.78881418,104470.0,104460.0,0.28580347]
[1737790642895,0.93223418,104470.0,104450.0,0.86741573]
[1737790643195,0.93223418,104470.0,104450.0,0.95162055]
[1737790643397,0.0577243,104460.0,104450.0,0.95162055]
[1737790643587,0.2109143,104460.0,104450.0,0.95162055]
[1737790643788,0.2109143,104460.0,104450.0,0.89389625]
[1737790646097,0.5717143,104460.0,104450.0,0.44889143]
[1737790649699,0.5717143,104460.0,104450.0,0.39189348]
[1737790649700,0.65777566,104460.0,104450.0,0.39189348]
[1737790650203,0.65777566,104460.0,104450.0,0.43379049]
[1737790650502,0.65777566,104460.0,104450.0,0.39189348]
[1737790651202,0.65777566,104460.0,104450.0,0.43379049]
[1737790655104,0.60005136,104460.0,104450.0,0.49151479]
[1737790658509,0.44686136,104460.0,104450.0,0.49151479]
[1737790661914,0.44686136,104460.0,104450.0,0.44961778]
[1737790662605,0.50458566,104460.0,104450.0,0.44961778]
[1737790662806,0.50458566,104460.0,104450.0,0.39189348]
[1737790666114,0.50458566,104460.0,104450.0,0.43379235]
[1737790666314,0.77252189,104460.0,104450.0,0.43379235]
[1737790666705,0.77252189,104460.0,104450.0,0.39189348]
[1737790669704,0.83024619,104460.0,104450.0,0.2289489]
[1737790669911,0.74418483,104460.0,104450.0,0.2289489]
[1737790671806,0.75386494,104460.0,104450.0,0.2289489]
[1737790672418,0.75386494,104460.0,104440.0,0.62761333]
[1737790672419,0.153205,104450.0,104440.0,0.62761333]
[1737790672619,0.6648293,104450.0,104440.0,0.62761333]
[1737790673721,0.6648293,104450.0,104440.0,0.51491192]
[1737790678126,0.15322,104440.0,104430.0,0.16274965]
[1737790678326,0.5717443,104440.0,104430.0,0.2046551]
[1737790681227,0.5717443,104440.0,104430.0,0.16274965]
[1737790681421,0.6577352,104440.0,104430.0,0.16274965]
[1737790684229,0.5717443,104440.0,104430.0,0.16274965]
[1737790687337,0.6577352,104440.0,104430.0,0.16274965]
[1737790691031,0.6546852,104440.0,104430.0,0.16274965]
[1737790697838,0.76940241,104440.0,104430.0,0.16274965]
[1737790699434,0.76940241,104440.0,104430.0,0.20465673]
[1737790699841,0.76940241,104440.0,104430.0,0.16274965]
[1737790700940,0.76940241,104440.0,104430.0,0.20465668]
[1737790701734,0.76940241,104440.0,104430.0,0.26238098]
[1737790701735,0.71167811,104440.0,104430.0,0.26238098]
[1737790701936,0.56150811,104440.0,104430.0,0.29418103]
[1737790702240,0.56150811,104440.0,104430.0,0.32648103]
[1737790703540,0.56150811,104440.0,104430.0,0.36881315]
[1737790704345,0.71472811,104440.0,104430.0,0.36881315]
[1737790704644,0.77245241,104440.0,104430.0,0.31108885]
[1737790705847,0.77245241,104440.0,104430.0,0.26918177]
[1737790708352,0.77245241,104440.0,104430.0,0.55498524]
[1737790708754,0.77245241,104440.0,104430.0,0.49088524]
[1737790709554,0.77245241,104440.0,104430.0,0.53279082]
[1737790710849,0.77245241,104440.0,104430.0,0.49088524]
[1737790711652,0.68646151,104440.0,104430.0,0.20508177]
[1737790713862,0.69620887,104440.0,104430.0,0.20508177]
[1737790718949,0.68646151,104440.0,104430.0,0.20508177]
[1737790719568,0.68646151,104440.0,104430.0,0.26280607]
[1737790720057,0.62873721,104440.0,104430.0,0.26280607]
[1737790720863,0.62873721,104440.0,104430.0,0.29340607]
[1737790723667,0.62873721,104440.0,104430.0,0.33531163]
[1737790724270,0.68646151,104440.0,104430.0,0.33531163]
[1737790725572,0.62873721,104440.0,104430.0,0.33531163]
[1737790726162,0.68646151,104440.0,104430.0,0.33531163]
[1737790726768,0.62873721,104440.0,104430.0,0.33531163]
[1737790727971,0.68646151,104440.0,104430.0,0.5633908]
[1737790734367,0.68646151,104440.0,104430.0,0.52148524]
[1737790735167,0.68646151,104440.0,104430.0,0.36825424]
[1737790735362,0.68646151,104440.0,104430.0,0.33765424]
[1737790739380,0.68646151,104440.0,104430.0,0.05185077]
[1737790740380,0.68646151,104440.0,104430.0,0.09375662]
[1737790743685,0.82988151,104440.0,104430.0,0.09375662]
[1737790746284,0.82988151,104440.0,104430.0,0.05185077]
[1737790746582,0.82988151,104440.0,104430.0,0.09375719]
[1737790748784,0.82988151,104440.0,104430.0,0.24699219]
[1737790755798,0.82988151,104440.0,104430.0,0.23761692]
[1737790755988,0.82988151,104440.0,104430.0,0.1957105]
[1737790756892,0.82988151,104440.0,104430.0,0.15337838]
[1737790757995,0.88760581,104440.0,104430.0,0.00014338]
[1737790761685,0.7728886,104440.0,104430.0,0.00014338]
[1737790771092,0.153249,104420.0,104410.0,0.7836187]
[1737790771293,0.2109733,104420.0,104410.0,0.8259676]
[1737790771601,0.2109733,104420.0,104410.0,0.7930676]
[1737790771995,0.2109733,104420.0,104410.0,0.8507919]
[1737790772693,0.2109733,104420.0,104410.0,0.86053017]
[1737790773201,0.2109733,104420.0,104410.0,0.89276083]
[1737790773907,0.153249,104420.0,104410.0,0.89276083]
[1737790774201,0.153249,104420.0,104410.0,0.85041193]
[1737790775503,0.2109733,104420.0,104410.0,0.85041193]
[1737790776703,0.2109733,104420.0,104410.0,0.79268763]
[1737790777400,0.2109733,104420.0,104410.0,0.83500254]
[1737790778505,0.2109733,104420.0,104410.0,0.87659104]
[1737790778804,0.2970788,104420.0,104410.0,0.24833608]
[1737790779009,0.2970788,104420.0,104410.0,0.20674758]
[1737790779306,0.2970788,104420.0,104410.0,0.16443267]
[1737790781603,0.6578788,104420.0,104410.0,0.00973827]
[1737790781803,0.6578788,104420.0,104400.0,0.73084478]
[1737790782003,0.3608,104410.0,104400.0,0.77316006]
[1737790782808,0.3608,104410.0,104400.0,0.78256445]
[1737790783910,0.3608,104410.0,104400.0,0.74024917]
[1737790785815,0.3608,104410.0,104400.0,0.45380407]
[1737790786311,0.5717883,104410.0,104400.0,0.39607977]
[1737790786912,0.514064,104410.0,104400.0,0.39607977]
[1737790788014,0.514064,104410.0,104400.0,0.45380407]
[1737790788212,0.5717883,104410.0,104400.0,0.13344338]
[1737790788811,0.6021883,104410.0,104400.0,0.13344338]
[1737790792904,0.6882938,104410.0,104400.0,0.13344338]
[1737790802414,0.80310113,104410.0,104400.0,0.13344338]
[1737790803915,0.80310113,104410.0,104400.0,0.10014338]
[1737790804120,0.86820113,104410.0,104400.0,0.10014338]
[1737790805916,0.86820113,104410.0,104400.0,0.25342238]
[1737790806426,0.78209563,104410.0,104400.0,0.25342238]
[1737790809319,0.79186011,104410.0,104400.0,0.10014338]
[1737790811222,0.79186011,104410.0,104400.0,0.09709338]
[1737790813622,0.93532175,104410.0,104400.0,0.09709338]
[1737790820432,0.82051442,104410.0,104400.0,0.09709338]
[1737790820630,0.74564994,104410.0,104400.0,0.25037238]
[1737790820827,0.74564994,104410.0,104400.0,0.31267238]
[1737790821132,0.71524994,104410.0,104400.0,0.31267238]
[1737790824830,0.5717883,104410.0,104400.0,0.31267238]
[1737790827336,0.5717883,104410.0,104400.0,0.28267238]
[1737790827539,0.83017639,104410.0,104400.0,0.28267238]
[1737790827729,0.86247639,104410.0,104400.0,0.12939338]
[1737790830737,0.74754994,104410.0,104400.0,0.12939338]
[1737790840248,0.91956659,104410.0,104400.0,0.12939338]
[1737790858865,0.88726659,104410.0,104400.0,0.28267238]
[1737790859064,0.88726659,104410.0,104400.0,0.31517238]
[1737790861979,0.71524994,104410.0,104400.0,0.31517238]
[1737790866177,0.88726659,104410.0,104400.0,0.31517238]
[1737790868990,0.74380495,104410.0,104400.0,0.31517238]
[1737790871391,0.74380495,104410.0,104400.0,0.16189338]
[1737790872781,0.64826525,104410.0,104390.0,0.1631064]
[1737790872988,0.6026033,104400.0,104390.0,0.20552972]
[1737790875791,0.86124984,104400.0,104390.0,0.20552972]
[1737790878696,0.91897414,104400.0,104390.0,0.20552972]
[1737790880700,0.928635,104400.0,104390.0,0.20552972]
[1737790885498,0.928635,104400.0,104390.0,0.1631064]
[1737790886905,0.928635,104400.0,104390.0,0.20551181]
[1737790887106,0.86124984,104400.0,104390.0,0.26323611]
[1737790887407,0.86124984,104400.0,104390.0,0.20551181]
[1737790919729,0.91897414,104400.0,104390.0,0.20551181]
[1737790919929,0.86124984,104400.0,104390.0,0.20551181]
[1737790928647,0.86124984,104400.0,104390.0,0.26323611]
[1737790928648,0.61944654,104400.0,104390.0,0.26323611]
[1737790928845,0.61944654,104400.0,104390.0,0.2825307]
[1737790929146,0.61944654,104400.0,104390.0,0.32495504]
[1737790930447,0.50449252,104400.0,104390.0,0.32495504]
[1737790931547,0.56221682,104400.0,104390.0,0.32495504]
[1737790931948,0.50449252,104400.0,104390.0,0.32495504]
[1737790934362,0.3608,104400.0,104390.0,0.32495504]
[1737790936860,0.56192514,104400.0,104390.0,0.32495504]
[1737790940066,0.56192514,104400.0,104390.0,0.61182076]
[1737790942867,0.47572865,104400.0,104390.0,0.32495504]
[1737790948568,0.11492865,104400.0,104390.0,0.68575504]
[1737790948769,0.11492865,104400.0,104390.0,0.6433307]
[1737790948969,0.11492865,104400.0,104390.0,0.68573871]
[1737790949172,0.11492865,104400.0,104390.0,0.72714545]
[1737790950476,0.11492865,104400.0,104390.0,0.68573871]
[1737790952778,0.11492865,104400.0,104390.0,0.72725758]
[1737790953180,0.08616684,104400.0,104390.0,0.72725758]
[1737790959678,0.08616684,104400.0,104390.0,0.36645758]
[1737790961085,0.08616684,104400.0,104390.0,0.72725758]
[1737790965192,0.08616684,104400.0,104390.0,0.68573871]
[1737790980991,0.08616684,104400.0,104390.0,0.72733793]
[1737790983299,0.20109549,104400.0,104390.0,0.72733793]
[1737790987302,0.20109549,104400.0,104390.0,1.06914779]
[1737790987501,0.20109549,104400.0,104390.0,1.02754857]
[1737790990706,0.08616684,104400.0,104390.0,0.97274037]
[1737790993505,0.08616684,104400.0,104390.0,0.68573871]
[1737790996797,0.08616684,104400.0,104390.0,0.72754859]
[1737791001613,0.08616684,104400.0,104390.0,1.06935845]
[1737791004214,0.08616684,104400.0,104390.0,1.13811845]
[1737791013524,0.08616684,104400.0,104390.0,1.42518291]
[1737791026023,0.08616684,104400.0,104390.0,1.38337303]
[1737791026226,0.08616684,104400.0,104390.0,1.34809527]
[1737791029730,0.08616684,104400.0,104390.0,1.3889304]
[1737791030133,0.08616684,104400.0,104390.0,1.1371437]
[1737791042736,0.08616684,104400.0,104390.0,1.42436864]
[1737791045647,0.08616684,104400.0,104390.0,1.38863611]
[1737791053856,0.08616684,104400.0,104390.0,1.38859611]
[1737791056558,0.08616684,104400.0,104390.0,1.1371037]
[1737791060766,0.08616684,104400.0,104390.0,1.42427973]
[1737791067473,0.08616684,104400.0,104390.0,1.35555973]
[1737791067675,0.08616684,104400.0,104390.0,1.42427973]
[1737791067973,0.08616684,104400.0,104390.0,1.67670233]
[1737791075179,0.08616684,104400.0,104390.0,1.42427973]
[1737791078877,0.08616684,104400.0,104390.0,1.3834446]
[1737791082077,0.08616684,104400.0,104390.0,1.04163474]
[1737791082475,0.08616684,104400.0,104390.0,1.08312933]
[1737791085681,0.08616684,104400.0,104390.0,1.39018576]
[1737791092385,0.08616684,104400.0,104390.0,1.42483487]
[1737791095886,0.08616684,104400.0,104390.0,1.13776316]
[1737791101492,0.08616684,104400.0,104390.0,1.39515042]
[1737791105599,0.08616684,104400.0,104390.0,1.42474463]
[1737791112098,0.08616684,104400.0,104390.0,1.3924824]
[1737791114587,0.08616684,104400.0,104390.0,1.13776316]
[1737791118505,0.08616684,104400.0,104390.0,1.42469529]
[1737791121199,0.08616684,104400.0,104390.0,1.3832007]
[1737791125617,0.08616684,104400.0,104390.0,1.42469529]
[1737791125821,0.08616684,104400.0,104390.0,1.08288543]
[1737791130228,0.08616684,104400.0,104390.0,1.39344008]
[1737791134130,0.08616684,104400.0,104390.0,1.13776316]
[1737791136420,0.08616684,104400.0,104390.0,1.09626857]
[1737791137826,0.08616684,104400.0,104390.0,1.38315708]
[1737791140534,0.08616684,104400.0,104390.0,1.08326553]
[1737791145633,0.08616684,104400.0,104390.0,1.42507539]
[1737791149438,0.08616684,104400.0,104390.0,1.13818688]
[1737791153940,0.08616684,104400.0,104390.0,0.79637702]
[1737791156747,0.08616684,104400.0,104390.0,1.42510466]
[1737791170656,0.08616684,104400.0,104390.0,1.39488836]
[1737791179660,0.08616684,104400.0,104390.0,1.32616836]
[1737791179861,0.08616684,104400.0,104390.0,1.39484836]
[1737791184663,0.08616684,104400.0,104390.0,1.03404836]
[1737791184866,0.08616684,104400.0,104390.0,1.39484836]
[1737791191171,0.08616684,104400.0,104390.0,1.39302836]
[1737791191671,0.08616684,104400.0,104390.0,1.13632688]
[1737791197777,0.08616684,104400.0,104390.0,1.09440857]
[1737791199680,0.11492865,104410.0,104390.0,1.41736517]
[1737791199883,0.31570917,104420.0,104410.0,0.153264]
[1737791200176,0.31570917,104420.0,104410.0,0.67192061]
[1737791200376,0.31570917,104420.0,104410.0,0.73632061]
[1737791202481,0.00158045,104430.0,104410.0,0.86949905]
[1737791202671,0.00158045,104430.0,104420.0,0.3373776]
[1737791205281,0.00158045,104430.0,104420.0,0.2796533]
[1737791206193,0.00158045,104430.0,104420.0,0.50855437]
[1737791207089,0.00158045,104430.0,104420.0,0.55046275]
[1737791207286,0.00158045,104430.0,104420.0,0.50855437]
[1737791210485,0.00158045,104430.0,104420.0,0.2796533]
[1737791214698,0.00158045,104430.0,104420.0,0.3096533]
[1737791216396,0.00158045,104430.0,104420.0,0.3673776]
[1737791219405,0.00158045,104430.0,104420.0,0.3096533]
[1737791222899,0.00158045,104430.0,104420.0,0.3673776]
[1737791224499,0.00158045,104430.0,104420.0,0.4092848]
[1737791224804,0.00158045,104430.0,104420.0,0.3673776]
[1737791225210,0.00158045,104430.0,104420.0,0.3096533]
[1737791226707,0.00158045,104430.0,104420.0,0.53855437]
[1737791228005,0.00158045,104430.0,104420.0,0.59627867]
[1737791228410,0.00158045,104430.0,104420.0,0.63818589]
[1737791229204,0.00014338,104430.0,104420.0,0.63818589]
[1737791231611,0.00014338,104430.0,104420.0,0.58046159]
[1737791231915,0.00014338,104430.0,104420.0,0.86690403]
[1737791232310,0.00014338,104430.0,104420.0,0.90904381]
[1737791232616,0.00014338,104430.0,104420.0,0.96676811]
[1737791233817,0.00014338,104430.0,104420.0,0.90904381]
[1737791234013,0.00014338,104430.0,104420.0,0.86713659]
[1737791234310,0.00014338,104430.0,104420.0,0.88272111]
[1737791234507,0.00014338,104430.0,104420.0,0.92491248]
[1737791235917,0.00014338,104430.0,104420.0,0.69601141]
[1737791242923,0.00014338,104430.0,104420.0,0.63828711]
[1737791245216,0.00014338,104430.0,104420.0,0.68019433]
[1737791245810,0.00014338,104430.0,104420.0,0.61151433]
[1737791246116,0.00014338,104430.0,104420.0,0.68015433]
[1737791248818,0.00014338,104430.0,104420.0,1.04095433]
[1737791249220,0.00014338,104430.0,104420.0,1.34085697]
[1737791249615,0.00014338,104430.0,104420.0,1.39858127]
[1737791253029,0.00014338,104430.0,104420.0,1.11213883]
[1737791257928,0.00014338,104430.0,104420.0,1.05441453]
[1737791258221,0.00014338,104430.0,104420.0,1.09631872]
[1737791259528,0.00014338,104430.0,104420.0,1.15404302]
[1737791259828,0.00014338,104430.0,104420.0,1.09631872]
[1737791260028,0.00014338,104430.0,104420.0,1.15404302]
[1737791261130,0.00014338,104430.0,104420.0,1.41370944]
[1737791262122,0.00014338,104430.0,104420.0,1.35598514]
[1737791263926,0.00014338,104430.0,104420.0,1.41370944]
[1737791264123,0.00014338,104430.0,104420.0,1.35598514]
[1737791268737,0.00014338,104430.0,104420.0,1.31408095]
[1737791268939,0.00014338,104430.0,104420.0,1.37180525]
[1737791270833,0.00014338,104430.0,104420.0,1.11213883]
[1737791271446,0.00014338,104430.0,104420.0,1.16986313]
[1737791271632,0.48546978,104450.0,104440.0,0.15322]
[1737791271832,0.48546978,104450.0,104440.0,0.2686686]
[1737791273140,0.48546978,104450.0,104440.0,0.2109443]
[1737791273739,0.48546978,104450.0,104440.0,0.2686686]
[1737791273941,0.48546978,104450.0,104440.0,0.2109443]
[1737791274129,0.48546978,104450.0,104440.0,0.2686686]
[1737791274937,0.48546978,104450.0,104440.0,0.44038647]
[1737791276444,0.48546978,104450.0,104440.0,0.49811077]